fUST/lending_fUST_20250308
["ID","MTS","AMOUNT","RATE_DAILY","PERIOD"]
[355646368,1741428436724,-500.0,0.00046989,2]
[355646369,1741428436749,-200.0,0.00046989,2]
[355646370,1741428436775,-206.79123668,0.00046989,120]
[355646371,1741428436801,-379.11,0.0004699,30]
[355646372,1741428436823,-315.92,0.0004699,30]
[355646373,1741428436846,-263.27,0.0004699,30]
[355646374,1741428436868,-182.82,0.0004699,30]
[355646375,1741428436890,-841.22,0.0004699,10]
[355646376,1741428436913,-152.35,0.0004699,30]
[355646377,1741428436934,-701.02,0.0004699,10]
[355646378,1741428436955,-761.8,0.0004699,30]
[355646379,1741428436977,-2447.26375989,0.0004699,4]
[355646380,1741428443077,-584.18,0.0004699,10]
[355646381,1741428443099,-1145.50090874,0.0004699,4]
[355646382,1741428443128,-1763.57057289,0.0004699,4]
[355646383,1741428443160,-2471.81420691,0.0004699,4]
[355646384,1741428477072,10000.0,0.0003,2]
[355646385,1741428498650,10000.0,0.0003,2]
[355646386,1741428557074,-440.55400292,0.0004489,2]
[355646387,1741428558146,174.856791,0.00041088,2]
[355646392,1741428592909,200.0,0.00041088,2]
[355646393,1741428612022,150.0,0.000411,2]
[355646754,1741428635461,233.8321,0.000432,120]
[355647010,1741428638097,-201.036,0.00045418,120]
[355647012,1741428638107,-825.83340127,0.0004689,28]
[355647014,1741428638118,-203.77711286,0.00046899,2]
[355647016,1741428638128,-234.77,0.0004698,10]
[355647018,1741428638137,-500.0,0.00046989,2]
[355647020,1741428638147,-400.0,0.00046989,2]
[355647022,1741428638156,-188047.034082,0.0004699,4]
[355647024,1741428638166,-999.0,0.00046999,120]
[355647025,1741428638175,-155.39213649,0.00046999,31]
[355647026,1741428638185,-152.78281551,0.00046999,31]
[355647027,1741428638194,-672506.774901,0.00047,120]
[355647028,1741428638203,-825.83340123,0.0004732,28]
[355647029,1741428638214,-825.83340123,0.0004775,28]
[355647030,1741428638223,-999.0,0.00047821,120]
[355647031,1741428638233,-153.01,0.000479,42]
[355647032,1741428638243,-153.01,0.000479,42]
[355647033,1741428638252,-153.01,0.000479,42]
[355647034,1741428638262,-153.01,0.000479,42]
[355647035,1741428638271,-153.01,0.000479,42]
[355647036,1741428638280,-153.01,0.000479,42]
[355647037,1741428638290,-825.83340123,0.0004818,28]
[355647038,1741428638299,-159.786316,0.00048527,2]
[355647039,1741428638309,-590.6045759,0.00048604,4]
[355647040,1741428638319,-825.83340123,0.0004861,28]
[355647041,1741428638328,-362.29758023,0.00048621,2]
[355647042,1741428638338,-999.0,0.00048643,120]
[355647043,1741428638347,-160.0,0.0004881,2]
[355647044,1741428638357,-151.0,0.00048871,2]
[355647045,1741428638366,-600.0,0.00048871,2]
[355647046,1741428638375,-500.0,0.00048873,10]
[355647047,1741428638385,-500.0,0.00048873,10]
[355647048,1741428638394,-500.0,0.00048873,2]
[355647049,1741428638403,-300.0,0.00048873,3]
[355647050,1741428638414,-500.0,0.00048873,10]
[355647051,1741428638427,-501.67916063,0.00048873,10]
[355647052,1741428638437,-500.0,0.00048873,2]
[355647053,1741428638446,-500.0,0.00048873,10]
[355647054,1741428638457,-13431.9310059,0.0004888,4]
[355647055,1741428638469,-13431.9310059,0.0004889,4]
[355647056,1741428638479,-1999.99,0.00048898,120]
[355647057,1741428638488,-705.94159179,0.00048899,41]
[355647058,1741428638501,-177.13,0.00048899,30]
[355647059,1741428638511,-1146882.4963,0.00048899,4]
[355647060,1741428638521,-1433.88481716,0.000489,41]
[355647061,1741428638530,-222000.0,0.000489,2]
[355647062,1741428638540,-248.0,0.000489,10]
[355647063,1741428638549,-8383.65114033,0.000489,2]
[355647064,1741428638559,-6000.0,0.00049,120]
[355647065,1741428638568,-785132.50234977,0.00049,120]
[355647066,1741428638578,-15111.6607726,0.00049,30]
[355647067,1741428638588,-15111.6607726,0.00049,30]
[355647068,1741428638597,-241546.7657028,0.00049,30]
[355647069,1741428638607,-241546.7657028,0.00049,30]
[355647070,1741428638616,-240.56430193,0.00049,30]
[355647071,1741428638625,-240.56430193,0.00049,30]
[355647072,1741428638635,-382.61157556,0.00049,120]
[355647073,1741428638644,-151.0,0.00049,3]
[355647074,1741428638653,-151.0,0.00049,3]
[355647075,1741428638663,-151.0,0.00049,3]
[355647076,1741428638672,-151.0,0.00049,3]
[355647077,1741428638682,-825.83340123,0.0004904,28]
[355647078,1741428638691,-5000.0,0.000492,120]
[355647079,1741428638700,-500.0,0.00049273,10]
[355647080,1741428638710,-621.54772806,0.00049273,10]
[355647081,1741428638719,-500.0,0.00049273,10]
[355647082,1741428638729,-478.2979507,0.00049273,10]
[355647083,1741428638738,-269.71745999,0.00049273,10]
[355647084,1741428638748,-500.0,0.00049273,10]
[355647085,1741428638757,-500.0,0.00049273,10]
[355647086,1741428638766,-500.0,0.00049273,10]
[355647087,1741428638775,-500.0,0.00049273,10]
[355647088,1741428638784,-500.0,0.00049273,10]
[355647089,1741428638794,-151.0,0.00049299,90]
[355647090,1741428638803,-151.0,0.00049299,3]
[355647091,1741428638812,-151.0,0.00049299,3]
[355647092,1741428638822,-500.0,0.00049315,120]
[355647093,1741428638831,-500.0,0.00049315,120]
[355647094,1741428638841,-500.0,0.00049315,120]
[355647095,1741428638850,-500.0,0.00049315,120]
[355647096,1741428638860,-515.49,0.00049315,120]
[355647097,1741428638869,-500.0,0.00049315,120]
[355647098,1741428638880,-693.29,0.00049315,120]
[355647099,1741428638889,-500.0,0.00049315,120]
[355647100,1741428638899,-500.0,0.00049315,120]
[355647101,1741428638909,-500.0,0.00049315,120]
[355647102,1741428639021,-702.95,0.00049315,120]
[355647103,1741428639031,-500.0,0.00049315,120]
[355647104,1741428639040,-534.02273981,0.00049315,120]
[355647105,1741428639050,-500.0,0.00049315,120]
[355647106,1741428639059,-673.69,0.00049315,120]
[355647107,1741428639068,-500.0,0.00049315,120]
[355647108,1741428639077,-505.27740974,0.00049315,120]
[355647109,1741428639086,-3411.4,0.00049315,120]
[355647110,1741428639095,-500.0,0.00049315,120]
[355647111,1741428639105,-500.0,0.00049315,120]
[355647112,1741428639115,-500.0,0.00049315,120]
[355647113,1741428639124,-685.92,0.00049315,120]
[355647114,1741428639133,-685.92,0.00049315,120]
[355647115,1741428639143,-685.92,0.00049315,120]
[355647116,1741428639152,-685.92,0.00049315,120]
[355647117,1741428639161,-685.92,0.00049315,120]
[355647118,1741428639170,-685.92,0.00049315,120]
[355647119,1741428639180,-685.92,0.00049315,120]
[355647120,1741428639190,-685.92,0.00049315,120]
[355647121,1741428639199,-685.92,0.00049315,120]
[355647122,1741428639208,-685.92,0.00049315,120]
[355647123,1741428639218,-685.92,0.00049315,120]
[355647124,1741428639228,-685.92,0.00049315,120]
[355647125,1741428639238,-685.92,0.00049315,120]
[355647126,1741428639247,-685.92,0.00049315,120]
[355647127,1741428639256,-685.92,0.00049315,120]
[355647128,1741428639265,-685.92,0.00049315,120]
[355647129,1741428639275,-685.92,0.00049315,120]
[355647130,1741428639284,-685.92,0.00049315,120]
[355647131,1741428639294,-685.92,0.00049315,120]
[355647132,1741428639303,-685.92,0.00049315,120]
[355647134,1741428639315,-685.92,0.00049315,120]
[355647136,1741428639324,-685.92,0.00049315,120]
[355647138,1741428639333,-685.92,0.00049315,120]
[355647140,1741428639343,-685.97426733,0.00049315,120]
[355647142,1741428639352,-500.0,0.00049315,120]
[355647144,1741428639361,-500.0,0.00049315,120]
[355647146,1741428639371,-1010.47,0.00049315,120]
[355647148,1741428639383,-500.0,0.00049315,120]
[355647150,1741428639393,-2737.27,0.00049315,120]
[355647152,1741428639402,-500.0,0.00049315,120]
[355647154,1741428639412,-500.0,0.00049315,120]
[355647157,1741428639425,-500.0,0.00049315,120]
[355647158,1741428639435,-549.93,0.00049315,120]
[355647161,1741428639445,-500.0,0.00049315,120]
[355647163,1741428639454,-559.50851263,0.00049315,120]
[355647165,1741428639468,-522.35,0.00049315,120]
[355647166,1741428639477,-689.9,0.00049315,120]
[355647168,1741428639487,-689.9,0.00049315,120]
[355647171,1741428639498,-689.9,0.00049315,120]
[355647173,1741428639508,-689.9,0.00049315,120]
[355647174,1741428639517,-689.9,0.00049315,120]
[355647176,1741428639527,-689.9,0.00049315,120]
[355647178,1741428639536,-689.9,0.00049315,120]
[355647180,1741428639545,-689.9,0.00049315,120]
[355647182,1741428639554,-689.9,0.00049315,120]
[355647184,1741428639564,-689.9,0.00049315,120]
[355647187,1741428639574,-689.9,0.00049315,120]
[355647189,1741428639584,-689.9,0.00049315,120]
[355647190,1741428639594,-689.9,0.00049315,120]
[355647191,1741428639603,-689.9,0.00049315,120]
[355647192,1741428639613,-689.9,0.00049315,120]
[355647193,1741428639622,-689.9,0.00049315,120]
[355647194,1741428639631,-689.9,0.00049315,120]
[355647195,1741428639641,-689.9,0.00049315,120]
[355647196,1741428639650,-689.9,0.00049315,120]
[355647197,1741428639659,-689.9,0.00049315,120]
[355647198,1741428639672,-689.9,0.00049315,120]
[355647199,1741428639681,-689.9,0.00049315,120]
[355647200,1741428639690,-689.9,0.00049315,120]
[355647201,1741428639700,-690.06832079,0.00049315,120]
[355647202,1741428639710,-301.5011335,0.00049315,120]
[355647203,1741428639720,-2277.94,0.00049315,120]
[355647204,1741428639730,-537.67,0.00049315,120]
[355647205,1741428639739,-500.0,0.00049315,120]
[355647206,1741428639749,-12405.94,0.00049315,120]
[355647207,1741428639758,-500.0,0.00049315,120]
[355647208,1741428639767,-500.0,0.00049315,120]
[355647209,1741428639776,-500.0,0.00049315,120]
[355647210,1741428639786,-558.74,0.00049315,120]
[355647211,1741428639796,-500.0,0.00049315,120]
[355647212,1741428639805,-1134.99,0.00049315,120]
[355647213,1741428639815,-4502.61,0.00049315,7]
[355647214,1741428639824,-1074.98,0.00049315,120]
[355647215,1741428639833,-425.82052716,0.00049315,120]
[355647216,1741428639843,-1000.0,0.00049315,7]
[355647217,1741428639852,-919.57,0.00049315,120]
[355647218,1741428639861,-500.0,0.00049315,120]
[355647219,1741428639870,-500.0,0.00049315,120]
[355647220,1741428639880,-500.0,0.00049315,120]
[355647221,1741428639890,-500.0,0.00049315,2]
[355647222,1741428639900,-500.0,0.00049315,120]
[355647223,1741428639909,-500.0,0.00049315,120]
[355647224,1741428639919,-3693.98,0.00049315,2]
[355647226,1741428639928,-500.0,0.00049315,120]
[355647227,1741428639938,-500.0,0.00049315,120]
[355647228,1741428639947,-500.0,0.00049315,120]
[355647229,1741428639957,-532.29,0.00049315,120]
[355647230,1741428639973,-500.0,0.00049315,120]
[355647232,1741428639982,-9999.0,0.00049315,2]
[355647234,1741428639991,-500.0,0.00049315,2]
[355647237,1741428640004,-673.6,0.00049315,2]
[355647239,1741428640018,-685.84,0.00049315,120]
[355647241,1741428640029,-617.07,0.00049315,120]
[355647243,1741428640039,-4907.29,0.00049315,120]
[355647245,1741428640048,-500.0,0.00049315,2]
[355647247,1741428640057,-800.0,0.00049327,30]
[355647249,1741428640067,-150.0,0.00049373,10]
[355647251,1741428640076,-150.0,0.00049373,3]
[355647253,1741428640086,-445.97594415,0.00049399,120]
[355647255,1741428640096,-495.60521991,0.00049399,120]
[355647257,1741428640105,-356.49323618,0.00049399,31]
[355647259,1741428640115,-211.79919856,0.00049399,120]
[355647261,1741428640124,-362.5816518,0.00049399,31]
[355647263,1741428640134,-1141769.32652487,0.000494,120]
[355647298,1741428643375,-2336.41695112,0.000488,2]
[355647299,1741428643390,-663.58304888,0.000488,2]
[355647300,1741428643402,-1352.19870076,0.00048888,30]
[355647301,1741428643417,-288647.80129924,0.00048888,30]
[355647302,1741428643433,-500.0,0.00049315,120]
[355647303,1741428643444,-147101.27095998,0.000494,120]
[355647310,1741428646102,-484.21825036,0.00049315,120]
[355647350,1741428704511,153.55,0.000381,31]
[355647351,1741428704588,153.55,0.000381,31]
[355647352,1741428704647,153.55,0.00043,33]
[355647353,1741428704674,153.55,0.00043,33]
[355647354,1741428704716,153.55,0.00043,33]
[355647355,1741428704815,30.97495201,0.00043,33]
[355647356,1741428704839,122.57504799,0.00043,33]
[355647357,1741428968044,2000.0,0.0003,2]
[355647358,1741428968415,2000.0,0.0003,2]
[355647359,1741428969356,2000.0,0.0003,2]
[355647360,1741428969737,2000.0,0.0003,2]
[355647361,1741428970053,2000.0,0.0003,2]
[355647362,1741428970366,2000.0,0.0003,2]
[355647363,1741428970666,2000.0,0.0003,2]
[355647364,1741428970971,2000.0,0.0003,2]
[355647365,1741428971272,2000.0,0.0003,2]
[355647366,1741428971588,2000.0,0.0003,2]
[355647368,1741428985964,2000.0,0.0003,2]
[355647369,1741428986302,2000.0,0.0003,2]
[355647370,1741428986601,2000.0,0.0003,2]
[355647371,1741428986986,2000.0,0.0003,2]
[355647372,1741428987323,2000.0,0.0003,2]
[355647373,1741428987868,2000.0,0.0003,2]
[355647374,1741428988857,2000.0,0.0003,2]
[355647375,1741428988965,2000.0,0.0003,2]
[355647386,1741429215595,7480.389999,0.0003,2]
[355647387,1741429418753,500.0,0.0003,2]
[355647390,1741429493894,188.0,0.0003,2]
[355647391,1741429537115,-162.056209,0.0003589,2]
[355647392,1741429537140,-153.33,0.000381,31]
[355647393,1741429537164,-153.33,0.000381,31]
[355647394,1741429537185,-1661.37848081,0.000389,8]
[355647395,1741429625092,-162.056209,0.0004263,2]
[355647396,1741429625114,-1903.40084829,0.000428,2]
[355647399,1741429642079,-1693.64974055,0.000428,2]
[355647400,1741429642101,-349.44153411,0.00042899,5]
[355647401,1741429643075,-200.55846589,0.00042899,5]
[355647402,1741429643095,-1719.22452793,0.000429,9]
[355647403,1741429643167,-592.75831436,0.000429,9]
[355647404,1741429643194,-153.33,0.00043,33]
[355647405,1741429643218,-153.33,0.00043,33]
[355647406,1741429643243,-153.33,0.00043,33]
[355647407,1741429643268,-153.33,0.00043,33]
[355647408,1741429643294,-148.82014074,0.00043832,2]
[355647409,1741429648087,-26.03665086,0.00043832,2]
[355647410,1741429648109,-167.833,0.00045418,120]
[355647411,1741429648132,-550.0,0.00045621,5]
[355647412,1741429648152,-326.85707785,0.0004643,2]
[355647413,1741429648173,-345.56849661,0.000473,2]
[355647414,1741429648199,-153.33,0.000479,42]
[355647415,1741429648224,-153.33,0.000479,42]
[355647416,1741429648249,-153.33,0.000479,42]
[355647417,1741429648273,-153.33,0.000479,42]
[355647418,1741429648294,-442.953432,0.00048334,4]
[355647419,1741429648317,-206.45835036,0.00049199,28]
[355647420,1741429648338,-203.77711286,0.000492,2]
[355647421,1741429648359,-123.69247033,0.000492,2]
[355647422,1741429650186,-312.3357971,0.000492,2]
[355647423,1741429650208,-600.0,0.0004927,2]
[355647424,1741429650228,-500.0,0.00049273,10]
[355647425,1741429650248,-500.0,0.00049273,2]
[355647426,1741429650270,-500.0,0.00049273,10]
[355647427,1741429650291,-475.88153512,0.00049273,10]
[355647428,1741429650312,-500.0,0.00049273,2]
[355647429,1741429650338,-500.0,0.00049273,10]
[355647430,1741429650359,-157.16,0.00049289,2]
[355647431,1741429650379,-157.16,0.00049289,2]
[355647432,1741429650399,-157.16,0.00049289,2]
[355647433,1741429650419,-157.16,0.0004929,2]
[355647434,1741429650440,-157.16,0.0004929,2]
[355647435,1741429650460,-157.16,0.0004929,2]
[355647436,1741429650480,-6596.78277624,0.0004929,4]
[355647437,1741429654094,-221.21804227,0.0004929,4]
[355647440,1741429714585,1352.0,0.000145,2]
[355647445,1741429736665,4479.610001,0.0003,2]
[355647446,1741429746515,10000.0,0.00025,2]
[355647447,1741429747068,-3792.80910511,0.0003,2]
[355647448,1741429747103,-1727.58089389,0.0003,2]
[355647449,1741429747122,-1653.15732775,0.00042,120]
[355647450,1741429747142,-236.84595985,0.00048334,4]
[355647454,1741429755831,2107.98,0.00025,2]
[355647455,1741429755855,2123.54703344,0.00025,2]
[355647456,1741429755876,2101.88978945,0.00025,2]
[355647457,1741429755898,1988.03576371,0.00025,2]
[355647458,1741429755924,1678.5474134,0.00025,2]
[355647459,1741429763182,2066.63160615,0.00025,2]
[355647460,1741429763208,7933.36839385,0.00025,2]
[355647461,1741429771044,10000.0,0.00025,2]
[355647462,1741429779235,10000.0,0.00025,2]
[355647465,1741429786912,8388.08419275,0.00025,2]
[355647466,1741429797599,5000.0,0.00024,2]
[355647467,1741429805695,10000.0,0.0002,2]
[355647468,1741429814074,10000.0,0.0002,2]
[355647512,1741429832364,-5000.0,0.00024,2]
[355647514,1741429832373,-1611.91580725,0.00025,2]
[355647516,1741429832383,-164.78,0.0004,2]
[355647518,1741429832393,-302.94750591,0.00047173,2]
[355647520,1741429832402,-2234.91674746,0.000479,11]
[355647522,1741429832412,-273.003584,0.00048334,4]
[355647524,1741429832422,-1744.09109849,0.000486,120]
[355647526,1741429832432,-250.05523952,0.00048754,2]
[355647528,1741429832441,-2038.90074751,0.00049,120]
[355647529,1741429832450,-270.4612565,0.00049,120]
[355647530,1741429832459,-7263.0,0.00049,2]
[355647531,1741429832469,-416.66666667,0.00049266,2]
[355647541,1741429832593,-500.0,0.00049273,10]
[355647543,1741429832603,-500.0,0.00049273,2]
[355647545,1741429832613,-500.0,0.00049273,2]
[355647547,1741429832622,-387.15,0.00049279,30]
[355647549,1741429832632,-283.27,0.00049279,10]
[355647550,1741429832642,-10974.62074808,0.00049289,4]
[355647569,1741429838336,-204.752688,0.00048334,4]
[355647570,1741429838345,-1490997.01294192,0.00049289,4]
[355647571,1741429838355,-13123.6924971,0.0004929,4]
[355647572,1741429838364,-775.97797374,0.00049299,9]
[355647573,1741429838373,-184.77,0.00049299,30]
[355647574,1741429838382,-999.0,0.00049299,120]
[355647575,1741429838392,-99366.8023841,0.000493,2]
[355647611,1741429843449,-540.18,0.0004929,10]
[355647612,1741429843458,-122633.1976159,0.000493,2]
[355647613,1741429843468,-55555.0,0.000493,120]
[355647614,1741429843478,-2624.73849942,0.00049305,4]
[355647615,1741429843488,-254.99999999,0.00049315,30]
[355647616,1741429843497,-500.0,0.00049315,120]
[355647617,1741429843506,-673.66,0.00049315,120]
[355647618,1741429843515,-500.0,0.00049315,120]
[355647619,1741429843524,-500.0,0.00049315,120]
[355647620,1741429843534,-500.59,0.00049315,120]
[355647623,1741429843543,-500.0,0.00049315,120]
[355647626,1741429843552,-500.0,0.00049315,2]
[355647628,1741429843562,-645.62,0.00049315,120]
[355647630,1741429843571,-500.0,0.00049315,120]
[355647631,1741429843581,-500.0,0.00049315,120]
[355647632,1741429843591,-500.0,0.00049315,120]
[355647633,1741429843600,-3269.26,0.00049315,120]
[355647634,1741429843609,-500.0,0.00049315,120]
[355647635,1741429843619,-500.0,0.00049315,120]
[355647636,1741429843629,-500.0,0.00049315,120]
[355647637,1741429843638,-2000.0,0.00049315,120]
[355647638,1741429843647,-500.0,0.00049315,120]
[355647639,1741429843657,-968.37,0.00049315,120]
[355647640,1741429843666,-500.0,0.00049315,120]
[355647641,1741429843676,-500.0,0.00049315,120]
[355647642,1741429843686,-500.0,0.00049315,120]
[355647643,1741429843696,-2623.22,0.00049315,120]
[355647644,1741429843706,-500.0,0.00049315,120]
[355647645,1741429843715,-497.16,0.00049315,2]
[355647646,1741429843725,-500.0,0.00049315,120]
[355647647,1741429843736,-500.0,0.00049315,120]
[355647648,1741429843746,-527.02,0.00049315,120]
[355647649,1741429843755,-500.0,0.00049315,120]
[355647650,1741429843764,-500.0,0.00049315,120]
[355647651,1741429843773,-500.0,0.00049315,120]
[355647652,1741429843783,-509.56700093,0.00049315,120]
[355647653,1741429843792,-500.0,0.00049315,120]
[355647654,1741429843802,-500.0,0.00049315,120]
[355647655,1741429843815,-500.0,0.00049315,120]
[355647656,1741429843824,-500.0,0.00049315,120]
[355647657,1741429843834,-4702.82,0.00049315,120]
[355647658,1741429843844,-591.36,0.00049315,120]
[355647659,1741429843853,-2183.02,0.00049315,120]
[355647660,1741429843862,-358.88854233,0.00049315,120]
[355647661,1741429843872,-500.0,0.00049315,120]
[355647662,1741429843882,-556.94,0.00049315,120]
[355647663,1741429843892,-500.0,0.00049315,120]
[355647664,1741429843902,-11889.02,0.00049315,120]
[355647665,1741429843911,-500.0,0.00049315,120]
[355647666,1741429843920,-5358.45,0.00049315,7]
[355647667,1741429843930,-535.46,0.00049315,120]
[355647668,1741429843940,-1087.7,0.00049315,120]
[355647669,1741429843950,-1030.19,0.00049315,120]
[355647670,1741429843959,-1000.0,0.00049315,7]
[355647671,1741429843969,-516.52915688,0.00049315,120]
[355647672,1741429843979,-881.26,0.00049315,120]
[355647673,1741429843989,-500.0,0.00049315,120]
[355647674,1741429843998,-500.0,0.00049315,120]
[355647675,1741429844007,-664.4,0.00049315,120]
[355647676,1741429844017,-3693.98,0.00049315,2]
[355647677,1741429844027,-685.84,0.00049315,120]
[355647678,1741429844037,-9999.0,0.00049315,2]
[355647679,1741429844046,-532.29,0.00049315,120]
[355647680,1741429844056,-500.0,0.00049315,120]
[355647681,1741429844066,-500.0,0.00049315,2]
[355647682,1741429844075,-500.0,0.00049315,120]
[355647683,1741429844084,-500.0,0.00049315,120]
[355647684,1741429844093,-500.0,0.00049315,120]
[355647685,1741429844102,-500.0,0.00049315,120]
[355647686,1741429844112,-673.6,0.00049315,2]
[355647687,1741429844121,-800.0,0.00049335,30]
[355647688,1741429844130,-800.0,0.00049351,30]
[355647689,1741429844140,-162.056209,0.0004937,2]
[355647690,1741429844149,-500.0,0.00049373,10]
[355647691,1741429844158,-500.0,0.00049373,10]
[355647692,1741429844168,-500.0,0.00049373,10]
[355647693,1741429844178,-500.0,0.00049373,10]
[355647694,1741429844188,-507.90796745,0.00049373,10]
[355647695,1741429844198,-500.0,0.00049373,10]
[355647696,1741429844207,-500.0,0.00049373,10]
[355647697,1741429844217,-269.71745999,0.00049373,10]
[355647698,1741429844226,-31496.861993,0.0004939,4]
[355647699,1741429844236,-525986.77442286,0.000494,120]
[355647700,1741429844245,-1155.83,0.000494,30]
[355647701,1741429844255,-892.55,0.000494,30]
[355647702,1741429844264,-301.574118,0.000494,90]
[355647703,1741429844273,-800.0,0.00049413,30]
[355647704,1741429844283,-500.0,0.00049438,99]
[355647705,1741429844292,-8318.82345489,0.00049498,2]
[355647706,1741429844302,-800.0,0.0004951,30]
[355647707,1741429844311,-500.0,0.00049538,90]
[355647708,1741429844328,-150.0,0.00049573,3]
[355647709,1741429844340,-150.0,0.00049573,10]
[355647710,1741429844349,-70564.67340359,0.00049598,7]
[355647841,1741429846285,-500.0,0.00049315,120]
[355647842,1741429846295,-9001.68993597,0.00049598,7]
[355647904,1741430643384,-3870.21337256,0.00024211,2]
[355647905,1741430757118,-2160.41952268,0.000269,4]
[355647906,1741430757143,-192.45317645,0.00035,7]
[355647907,1741430757172,-151.61759926,0.0003589,2]
[355647908,1741430816181,-10.65216074,0.0003589,2]
[355647909,1741430816208,-153.29,0.000381,31]
[355647910,1741430816235,-42.96199553,0.000381,31]
[355647911,1741430829168,-110.32800447,0.000381,31]
[355647912,1741430829193,-153.29,0.000381,31]
[355647913,1741430829218,-153.29,0.000381,31]
[355647914,1741430829242,-234.08847488,0.00041096,2]
[355647915,1741430829263,-162.26976,0.00042209,2]
[355647916,1741430829284,-400.0,0.00042391,5]
[355647917,1741430829306,-10002.65421919,0.00042392,2]
[355647918,1741430834077,-951.86565491,0.00042392,2]
[355647919,1741430840102,-3767.80666391,0.00042392,2]
[355647920,1741430842168,-1160.71006015,0.00042392,2]
[355647923,1741430848108,-1708.68498885,0.00042392,2]
[355647924,1741430849081,-1100.98934074,0.00042392,2]
[355647925,1741430955065,-187.76133822,0.00042307,6]
[355647926,1741430955089,-6207.28907225,0.00042392,2]
[355647927,1741430955111,-163.33877303,0.000428,120]
[355647928,1741430955133,-1335.65915042,0.000429,9]
[355647929,1741430959089,-752.74638819,0.000429,9]
[355647930,1741430959115,-153.29,0.00043,33]
[355647931,1741430959141,-153.29,0.00043,33]
[355647932,1741430959168,-153.29,0.00043,33]
[355647933,1741430959196,-153.29,0.00043,33]
[355647934,1741430959223,-153.29,0.00043,33]
[355647935,1741430959248,-153.29,0.00043,33]
[355647936,1741430959273,-153.29,0.00043,33]
[355647937,1741430959300,-153.29,0.00043,33]
[355647938,1741430959321,-500.0,0.00043,10]
[355647939,1741430959342,-500.0,0.00043,10]
[355647940,1741430959363,-488.99247918,0.00043,2]
[355647941,1741430960135,-11.00752082,0.00043,2]
[355647942,1741430960156,-200.0,0.000432,120]
[355647943,1741430961938,357.97268591,0.000408,2]
[355647944,1741430963109,-163.33877301,0.00044575,120]
[355648024,1741431034820,233.8321,0.000432,120]
[355648216,1741431040551,-105.76285055,0.00045418,120]
[355648218,1741431040563,-96.03514945,0.00045418,120]
[355648220,1741431040573,-357.97268591,0.000458,2]
[355648221,1741431040583,-3250.92934336,0.00046191,2]
[355648222,1741431040592,-163.33877301,0.0004635,120]
[355648223,1741431040602,-1000.0,0.00047,2]
[355648224,1741431040612,-1000.0,0.00047641,6]
[355648225,1741431040621,-568.78608118,0.00047778,6]
[355648244,1741431044023,-0.95713183,0.00047778,6]
[355648271,1741431121691,153.2,0.000381,31]
[355648272,1741431121749,153.2,0.000381,31]
[355648273,1741431121806,153.2,0.000381,31]
[355648274,1741431121869,153.2,0.000381,31]
[355648275,1741431121923,153.2,0.000381,31]
[355648276,1741431121997,153.2,0.00043,33]
[355648277,1741431122113,153.2,0.00043,33]